fUSD/lending_fUSD_20260409
["ID","MTS","AMOUNT","RATE_DAILY","PERIOD"]
[420089950,1775664002798,1200.0,8.621e-05,2]
[420089951,1775664002834,276.44061797,8.621e-05,2]
[420089952,1775664003072,23.55938203,8.621e-05,2]
[420089953,1775664003110,300.0,8.621e-05,2]
[420089954,1775664003343,150.0,8.621e-05,2]
[420089955,1775664007688,156.0,8.6e-05,3]
[420089956,1775664014441,281.88719221,8.603e-05,2]
[420089957,1775664014479,500.0,8.603e-05,2]
[420089958,1775664015367,500.0,8.603e-05,2]
[420089959,1775664016361,500.0,8.603e-05,2]
[420089960,1775664017190,500.0,8.603e-05,2]
[420089961,1775664017448,300.0,8.621e-05,2]
[420089962,1775664020437,500.0,8.603e-05,2]
[420089963,1775664023044,500.0,8.603e-05,2]
[420089964,1775664033064,153.80874919,8.621e-05,2]
[420089965,1775664061622,300.0,8.621e-05,2]
[420089966,1775664075824,5490.75467657,8.603e-05,2]
[420089967,1775664079152,2500.0,8.522e-05,2]
[420089970,1775664088828,3790.614,8.449e-05,2]
[420089971,1775664088942,228.649,8.449e-05,2]
[420089975,1775664149521,3480.747,8.522e-05,2]
[420089976,1775664149544,3294.6751,8.522e-05,2]
[420089978,1775664186622,3901.801621,8.178e-05,2]
[420089979,1775664223143,5000.01,8.522e-05,2]
[420089980,1775664223169,2803.533279,8.522e-05,2]
[420089981,1775664223194,1323.227421,8.522e-05,2]
[420089982,1775664229171,657.0206,8.522e-05,2]
[420089983,1775664243369,2500.0,8.522e-05,2]
[420089984,1775664255142,410.3175,8.522e-05,2]
[420089986,1775664314389,156.0,8.6e-05,3]
[420089987,1775664361189,300.0,8.601e-05,2]
[420089990,1775664398466,2425.2951,8.522e-05,2]
[420089991,1775664421253,300.0,8.601e-05,2]
[420089992,1775664428931,4064.3974,7.945e-05,2]
[420089993,1775664428956,4370.445771,7.945e-05,2]
[420089994,1775664460752,4342.9894,8e-05,2]
[420089995,1775664460783,1605.1445498,8e-05,2]
[420089996,1775664475847,-1200.0,8.602e-05,2]
[420089997,1775664475880,-300.0,8.602e-05,2]
[420089998,1775664475911,-150.0,8.602e-05,2]
[420089999,1775664475943,-300.0,8.602e-05,2]
[420090000,1775664475973,-273.0,8.602e-05,2]
[420090001,1775664476004,-250.0,8.602e-05,2]
[420090002,1775664485839,-5323.570022,8.602e-05,2]
[420090003,1775664485856,-10000.01,8.602e-05,2]
[420090004,1775664485885,-10000.01,8.602e-05,2]
[420090005,1775664485901,-10000.01,8.602e-05,2]
[420090006,1775664485929,-10000.01,8.602e-05,2]
[420090007,1775664485945,-10000.01,8.602e-05,2]
[420090008,1775664485961,-10000.01,8.602e-05,2]
[420090009,1775664485976,-10000.01,8.602e-05,2]
[420090010,1775664485991,-10000.01,8.602e-05,2]
[420090011,1775664490746,166.66,8.479e-05,2]
[420090013,1775664542648,3913.3712,8.522e-05,2]
[420090014,1775664546138,300.0,8.601e-05,2]
[420090015,1775664549120,1806.6388,8.522e-05,2]
[420090016,1775664565418,200.3541267,8.591e-05,2]
[420090018,1775664579514,303.46,8.219e-05,2]
[420090021,1775664594470,3476.1858733,8.521e-05,2]
[420090022,1775664594497,10000.01,8.521e-05,2]
[420090023,1775664594524,4833.35,8.521e-05,2]
[420090024,1775664594551,5000.01,8.521e-05,2]
[420090025,1775664594579,5000.01,8.521e-05,2]
[420090026,1775664594606,5000.01,8.521e-05,2]
[420090027,1775664594634,5000.01,8.521e-05,2]
[420090028,1775664594661,5000.01,8.521e-05,2]
[420090029,1775664594689,5000.01,8.521e-05,2]
[420090030,1775664594717,5000.01,8.521e-05,2]
[420090031,1775664594744,5000.01,8.521e-05,2]
[420090032,1775664594772,5000.01,8.521e-05,2]
[420090033,1775664597676,-10000.01,8.521e-05,2]
[420090034,1775664597829,-10000.01,8.521e-05,2]
[420090035,1775664597967,-10000.01,8.521e-05,2]
[420090036,1775664598140,-10000.01,8.521e-05,2]
[420090037,1775664598287,-10000.01,8.521e-05,2]
[420090038,1775664598987,394.15138645,7.888e-05,2]
[420090039,1775664602398,-300.0,8.52e-05,2]
[420090040,1775664602429,-300.0,8.52e-05,2]
[420090041,1775664602461,-1200.0,8.52e-05,2]
[420090042,1775664602558,-6400.01,8.521e-05,2]
[420090043,1775664602646,-10000.01,8.521e-05,2]
[420090044,1775664602696,-10000.01,8.521e-05,2]
[420090045,1775664602774,-10000.01,8.521e-05,2]
[420090046,1775664606131,156.0,7.888e-05,3]
[420090047,1775664606208,-1214.55116669,8.521e-05,2]
[420090048,1775664606239,-207.52369719,8.521e-05,2]
[420090049,1775664606269,-837.44850205,8.521e-05,2]
[420090050,1775664606371,-5480.96326814,8.521e-05,2]
[420090051,1775664606419,-859.18292474,8.521e-05,2]
[420090052,1775664606529,-8281.64415052,8.521e-05,2]
[420090053,1775664606595,-10000.01,8.521e-05,2]
[420090054,1775664606654,-10000.01,8.521e-05,2]
[420090055,1775664606733,-10000.01,8.521e-05,2]
[420090065,1775664632699,-1312008.59997618,8.521e-05,2]
[420090066,1775664632710,-155515.42987351,8.521e-05,2]
[420090067,1775664632720,-500.24408688,8.602e-05,2]
[420090068,1775664632731,-150.0,8.602e-05,2]
[420090069,1775664632740,-5000.0,8.602e-05,2]
[420090070,1775664632750,-10828.46581885,8.602e-05,2]
[420090071,1775664632760,-250.0,8.602e-05,2]
[420090072,1775664632770,-500.3477331,8.603e-05,2]
[420090073,1775664632780,-381.23872411,8.603e-05,2]
[420090074,1775664632791,-500.0,8.603e-05,2]
[420090075,1775664632801,-500.0,8.603e-05,2]
[420090076,1775664632811,-169.66281329,8.603e-05,2]
[420090077,1775664632822,-246.25716228,8.603e-05,2]
[420090078,1775664632832,-500.0,8.603e-05,2]
[420090079,1775664632842,-500.0,8.603e-05,2]
[420090080,1775664632853,-500.0,8.603e-05,2]
[420090081,1775664632863,-500.0,8.603e-05,2]
[420090082,1775664632873,-500.0,8.603e-05,2]
[420090083,1775664632882,-500.0,8.603e-05,2]
[420090084,1775664632893,-500.0,8.603e-05,2]
[420090085,1775664632903,-500.0,8.603e-05,2]
[420090086,1775664632912,-500.0,8.603e-05,2]
[420090087,1775664632923,-500.0,8.603e-05,2]
[420090088,1775664632933,-500.25334159,8.603e-05,2]
[420090089,1775664632943,-500.0,8.603e-05,2]
[420090090,1775664632953,-29785.24532343,8.603e-05,2]
[420090091,1775664632962,-6805.0,8.603e-05,2]
[420090092,1775664632972,-3642.0,8.603e-05,2]
[420090093,1775664632981,-488.0,8.603e-05,2]
[420090094,1775664632991,-500.24408686,8.612e-05,2]
[420090095,1775664633000,-1000.0,8.62e-05,2]
[420090096,1775664633010,-1381.46684249,8.621e-05,2]
[420090097,1775664633020,-500.24408686,8.621e-05,2]
[420090098,1775664633029,-1106238.92936903,8.622e-05,2]
[420090099,1775664633043,-212501.13682161,8.622e-05,2]
[420090100,1775664633055,-161337.67275403,8.622e-05,2]
[420090101,1775664633066,-131399.26329462,8.622e-05,2]
[420090102,1775664633078,-1254.41808677,8.622e-05,2]
[420090106,1775664638503,-2190.42,8.622e-05,2]
[420090108,1775664638515,-720.01455073,8.622e-05,2]
[420090109,1775664638527,-88409.57401837,8.622e-05,2]
[420090110,1775664638538,-5619.42063202,8.622e-05,2]
[420090111,1775664638550,-790329.15047282,8.622e-05,2]
[420090112,1775664638560,-4999.99,8.622e-05,2]
[420090113,1775664638569,-116685.03,8.622e-05,2]
[420090114,1775664638579,-1211.11,8.622e-05,2]
[420090115,1775664638589,-299.99,8.622e-05,2]
[420090116,1775664638598,-9999.99,8.622e-05,2]
[420090117,1775664638608,-1621.24,8.622e-05,2]
[420090118,1775664638618,-150.99,8.622e-05,2]
[420090119,1775664638628,-9999.99,8.622e-05,2]
[420090120,1775664638638,-153.4513968,8.622e-05,2]
[420090121,1775664638648,-304.324445,8.622e-05,2]
[420090122,1775664638658,-500.0,8.622e-05,2]
[420090123,1775664638668,-273.0,8.622e-05,2]
[420090124,1775664638678,-33041.7805,8.623e-05,2]
[420090125,1775664638687,-150.0,8.623e-05,2]
[420090126,1775664638697,-150.0,8.623e-05,2]
[420090127,1775664638707,-180420.53,8.623e-05,2]
[420090128,1775664638717,-3856.95,8.623e-05,2]
[420090129,1775664638727,-303.46,8.676e-05,2]
[420090130,1775664638737,-339.77,8.68e-05,2]
[420090131,1775664638747,-1000.0,8.723e-05,2]
[420090132,1775664638757,-500.0,8.723e-05,2]
[420090133,1775664638767,-500.0,8.754e-05,2]
[420090134,1775664638779,-166.66,8.759e-05,2]
[420090135,1775664638789,-348.29,8.805e-05,2]
[420090136,1775664638799,-9999.99,8.805e-05,2]
[420090137,1775664638809,-313.15,8.805e-05,2]
[420090138,1775664638819,-150.99,8.805e-05,2]
[420090139,1775664638829,-9999.99,8.805e-05,2]
[420090140,1775664638840,-3208.97,8.805e-05,2]
[420090141,1775664638850,-9999.99,8.805e-05,2]
[420090142,1775664638860,-5947.35,8.805e-05,2]
[420090143,1775664638871,-499.99,8.805e-05,2]
[420090144,1775664638881,-7176.46,8.805e-05,2]
[420090145,1775664638891,-999.99,8.805e-05,2]
[420090146,1775664638901,-9459.18,8.805e-05,2]
[420090147,1775664638910,-351.58,8.805e-05,2]
[420090148,1775664638920,-518.32,8.805e-05,2]
[420090149,1775664638929,-1191.35,8.805e-05,2]
[420090150,1775664638939,-9999.99,8.805e-05,2]
[420090152,1775664638949,-500.0,8.997e-05,2]
[420090154,1775664638959,-166.66,9.039e-05,2]
[420090155,1775664638969,-531.0,9.039e-05,2]
[420090156,1775664638979,-1034.0,9.057e-05,2]
[420090157,1775664638988,-303.46,9.132e-05,2]
[420090158,1775664638999,-500.0,9.151e-05,2]
[420090159,1775664639009,-1000.0,9.151e-05,2]
[420090160,1775664639019,-500.83452664,9.151e-05,2]
[420090161,1775664639028,-1000.0,9.151e-05,2]
[420090162,1775664639037,-1000.0,9.151e-05,2]
[420090163,1775664639047,-609.735,9.151e-05,2]
[420090164,1775664639056,-501.51019132,9.151e-05,2]
[420090165,1775664639065,-1000.0,9.151e-05,2]
[420090166,1775664639074,-1000.0,9.151e-05,2]
[420090167,1775664639083,-500.0,9.151e-05,2]
[420090168,1775664639093,-170.57896389,9.151e-05,2]
[420090169,1775664639104,-1000.0,9.151e-05,2]
[420090170,1775664639114,-500.43563652,9.151e-05,2]
[420090171,1775664639124,-550.3869963,9.193e-05,2]
[420090172,1775664639133,-500.0,9.193e-05,2]
[420090173,1775664639143,-1271.0,9.206e-05,2]
[420090174,1775664639153,-364543.69817135,9.214e-05,2]
[420090175,1775664639163,-1175.0,9.225e-05,2]
[420090176,1775664639172,-500.0,9.271e-05,2]
[420090177,1775664639181,-150.0,9.31e-05,2]
[420090178,1775664639188,-166.66,9.318e-05,2]
[420090179,1775664639195,-420.0,9.372e-05,2]
[420090180,1775664639202,-420.0,9.372e-05,2]
[420090181,1775664639210,-1680.0,9.372e-05,2]
[420090182,1775664639221,-500.0,9.382e-05,2]
[420090183,1775664639230,-150.0,9.4e-05,2]
[420090184,1775664639239,-420.0,9.461e-05,2]
[420090185,1775664639247,-255.0,9.462e-05,2]
[420090186,1775664639257,-250.0,9.462e-05,2]
[420090187,1775664639266,-193.0,9.462e-05,2]
[420090188,1775664639273,-5000.0,9.462e-05,2]
[420090189,1775664639282,-307.18082977,9.463e-05,2]
[420090190,1775664639291,-500.0,9.545e-05,2]
[420090191,1775664639300,-303.46,9.589e-05,2]
[420090192,1775664639310,-500.0,9.593e-05,2]
[420090193,1775664639319,-159.9392,9.593e-05,2]
[420090194,1775664639327,-166.66,9.598e-05,2]
[420090195,1775664639337,-232953.27,9.614e-05,2]
[420090196,1775664639347,-1500.0,9.698e-05,2]
[420090197,1775664639355,-1500.0,9.698e-05,2]
[420090198,1775664639365,-1500.0,9.698e-05,2]
[420090199,1775664639372,-500.0,9.698e-05,2]
[420090200,1775664639382,-1500.0,9.698e-05,2]
[420090201,1775664639391,-1005.18579088,9.698e-05,2]
[420090202,1775664639400,-1000.0,9.741e-05,2]
[420090203,1775664639408,-500.0,9.819e-05,2]
[420090204,1775664639415,-166.66,9.878e-05,2]
[420090205,1775664639425,-3222.29937552,9.961e-05,2]
[420090206,1775664639435,-13341.26,9.973e-05,2]
[420090207,1775664639444,-376.36,9.993e-05,2]
[420090208,1775664639453,-200.0,0.0001,2]
[420090209,1775664639462,-151.0,0.0001,2]
[420090210,1775664639470,-304.52304169,0.0001,2]
[420090211,1775664639477,-200.0,0.0001,2]
[420090212,1775664639488,-1840.0,0.0001,2]
[420090213,1775664639498,-151.0,0.0001,2]
[420090214,1775664639508,-151.0,0.0001,2]
[420090215,1775664639518,-151.0,0.0001,2]
[420090216,1775664639528,-151.0,0.0001,2]
[420090217,1775664639538,-151.0,0.0001,2]
[420090218,1775664639549,-151.0,0.0001,2]
[420090219,1775664639559,-151.0,0.0001,2]
[420090220,1775664639569,-151.0,0.0001,2]
[420090221,1775664639579,-200.0,0.0001,2]
[420090222,1775664639589,-151.0,0.0001,2]
[420090223,1775664639599,-151.0,0.0001,2]
[420090224,1775664639608,-151.0,0.0001,2]
[420090225,1775664639618,-151.0,0.0001,2]
[420090226,1775664639628,-151.0,0.0001,2]
[420090227,1775664639638,-151.0,0.0001,2]
[420090228,1775664639647,-151.0,0.0001,2]
[420090229,1775664639658,-500.0,0.0001,2]
[420090230,1775664639668,-500.0,0.0001,2]
[420090231,1775664639678,-500.0,0.0001,2]
[420090232,1775664639688,-500.0,0.0001,2]
[420090233,1775664639698,-500.0,0.0001,2]
[420090234,1775664639708,-500.0,0.0001,2]
[420090235,1775664639719,-500.0,0.0001,2]
[420090236,1775664639728,-500.0,0.0001,2]
[420090237,1775664639737,-500.0,0.0001,2]
[420090238,1775664639747,-500.0,0.0001,2]
[420090239,1775664639757,-500.0,0.0001,2]
[420090240,1775664639767,-500.0,0.0001,2]
[420090242,1775664639777,-500.0,0.0001,2]
[420090244,1775664639787,-500.0,0.0001,2]
[420090246,1775664639798,-500.0,0.0001,2]
[420090247,1775664639807,-500.0,0.0001,2]
[420090248,1775664639817,-500.0,0.0001,2]
[420090249,1775664639827,-500.0,0.0001,2]
[420090250,1775664639836,-500.0,0.0001,2]
[420090251,1775664639846,-500.0,0.0001,2]
[420090252,1775664639856,-500.0,0.0001,2]
[420090253,1775664639866,-500.0,0.0001,2]
[420090254,1775664639876,-151.0,0.0001,2]
[420090255,1775664639886,-500.0,0.0001,2]
[420090256,1775664639896,-500.0,0.0001,2]
[420090257,1775664639907,-151.0,0.0001,2]
[420090258,1775664639916,-500.0,0.0001,2]
[420090259,1775664639926,-276.40438301,0.0001,2]
[420090260,1775664639935,-151.0,0.0001,2]
[420090261,1775664639945,-500.0,0.0001,2]
[420090262,1775664639955,-151.0,0.0001,2]
[420090263,1775664639964,-500.0,0.0001,2]
[420090264,1775664639974,-151.0,0.0001,2]
[420090265,1775664639983,-500.0,0.0001,2]
[420090266,1775664639993,-151.0,0.0001,2]
[420090267,1775664640002,-500.0,0.0001,2]
[420090268,1775664640011,-151.0,0.0001,2]
[420090269,1775664640021,-151.0,0.0001,2]
[420090270,1775664640030,-151.0,0.0001,2]
[420090271,1775664640040,-151.0,0.0001,2]
[420090272,1775664640049,-151.0,0.0001,2]
[420090273,1775664640059,-151.0,0.0001,2]
[420090274,1775664640068,-151.0,0.0001,2]
[420090275,1775664640078,-151.0,0.0001,2]
[420090276,1775664640088,-151.0,0.0001,2]
[420090277,1775664640097,-1199.20597015,0.0001,2]
[420090278,1775664640107,-151.0,0.0001,2]
[420090279,1775664640117,-151.0,0.0001,2]
[420090280,1775664640127,-151.0,0.0001,2]
[420090281,1775664640136,-151.0,0.0001,2]
[420090282,1775664640146,-151.0,0.0001,2]
[420090283,1775664640156,-1117.96912874,0.0001,2]
[420090284,1775664640166,-151.0,0.0001,2]
[420090285,1775664640176,-151.0,0.0001,2]
[420090286,1775664640186,-489.18139785,0.0001,2]
[420090287,1775664640196,-200.0,0.0001,2]
[420090288,1775664640206,-17815.67883391,0.0001,2]
[420090289,1775664640217,-348.68212697,0.0001,2]
[420090290,1775664640227,-152.39975309,0.0001,2]
[420090291,1775664640236,-303.46,0.00010046,2]
[420090292,1775664640246,-1279.0,0.00010074,2]
[420090293,1775664640256,-500.0,0.00010093,2]
[420090294,1775664640269,-725.0,0.00010094,2]
[420090295,1775664640279,-200.0,0.000101,2]
[420090296,1775664640289,-200.0,0.000101,2]
[420090297,1775664640298,-261.69532138,0.000101,2]
[420090298,1775664640308,-200.0,0.000101,2]
[420090299,1775664640318,-253.29,0.00010121,2]
[420090300,1775664640328,-1000.0,0.00010141,2]
[420090301,1775664640338,-259.4693816,0.0001018,2]
[420090302,1775664640347,-5533.0,0.000102,3]
[420090303,1775664640356,-200.0,0.00010201,2]
[420090304,1775664640366,-200.0,0.00010201,2]
[420090305,1775664640376,-200.0,0.00010201,2]
[420090306,1775664640386,-2000.0,0.00010246,2]
[420090307,1775664640395,-2000.0,0.00010246,2]
[420090308,1775664640405,-2000.0,0.00010246,2]
[420090309,1775664640414,-2000.0,0.00010246,2]
[420090310,1775664640424,-1502.00296386,0.00010288,2]
[420090311,1775664640434,-200.0,0.00010303,2]
[420090314,1775664640837,-200.0,0.00010303,2]
[420090315,1775664640851,-200.0,0.00010303,2]
[420090316,1775664640861,-587.0,0.00010309,2]
[420090317,1775664640871,-587.0,0.00010309,2]
[420090318,1775664640881,-2351.0,0.00010309,2]
[420090319,1775664640891,-500.0,0.00010367,2]
[420090320,1775664640901,-5533.0,0.000104,5]
[420090321,1775664640911,-200.0,0.00010406,2]
[420090322,1775664640920,-200.0,0.00010406,2]
[420090323,1775664640930,-200.0,0.00010406,2]
[420090324,1775664640940,-433.0,0.00010408,2]
[420090325,1775664640950,-587.0,0.00010408,2]
[420090326,1775664640960,-547.83327353,0.00010425,2]
[420090327,1775664640970,-223.0,0.0001047,2]
[420090328,1775664640981,-303.46,0.00010502,2]
[420090329,1775664640990,-200.0,0.00010548,2]
[420090330,1775664641001,-1243.57659104,0.00010548,2]
[420090331,1775664641011,-281.72626647,0.00010548,2]
[420090332,1775664641021,-500.0,0.00010641,2]
[420090333,1775664641031,-1500.0,0.00010688,2]
[420090334,1775664641040,-152.39975309,0.0001069,2]
[420090335,1775664641050,-3769312.99539662,0.000107,2]
[420090336,1775664641060,-1908.0,0.00010723,2]
[420090337,1775664641070,-1664.0,0.00010745,2]
[420090338,1775664641080,-1544.0,0.00010766,2]
[420090339,1775664641090,-544.0,0.00010788,2]
[420090340,1775664641100,-2500.0,0.00010794,2]
[420090341,1775664641111,-2500.0,0.00010794,2]
[420090342,1775664641121,-2500.0,0.00010794,2]
[420090343,1775664641131,-2500.0,0.00010794,2]
[420090344,1775664641141,-172.687,0.000108,2]
[420090345,1775664641151,-1949.0,0.00010809,2]
[420090346,1775664641161,-1527.0,0.00010818,2]
[420090347,1775664641171,-1527.0,0.00010818,2]
[420090348,1775664641181,-152.0,0.00010818,2]
[420090349,1775664641192,-1552.49500782,0.00010818,2]
[420090350,1775664641204,-154.22301552,0.00010818,2]
[420090351,1775664641214,-513.0,0.0001083,2]
[420090352,1775664641224,-160.0,0.00010877,2]
[420090353,1775664641235,-389.857589,0.00010877,2]
[420090354,1775664641245,-619.715178,0.00010877,2]
[420090355,1775664641255,-160.0,0.00010877,2]
[420090356,1775664641265,-1847.693184,0.00010877,2]
[420090357,1775664641275,-3535.386368,0.00010877,2]
[420090358,1775664641285,-10768.24818681,0.000109,2]
[420090359,1775664641294,-10768.24818675,0.000109,2]
[420090360,1775664641304,-10768.24818675,0.000109,2]
[420090361,1775664641314,-634.23081963,0.00010915,2]
[420090362,1775664641323,-500.0,0.00010959,2]
[420090363,1775664641333,-150.0,0.00010959,2]
[420090364,1775664641343,-303.46,0.00010959,2]
[420090365,1775664641353,-1049.14,0.00010963,2]
[420090366,1775664641363,-222.60813125,0.00010989,2]
[420090367,1775664641373,-256.0618975,0.00010989,2]
[420090368,1775664641383,-281.49818396,0.00010989,2]
[420090369,1775664641393,-151.502,0.00011022,2]
[420090370,1775664641403,-500.0,0.00011073,2]
[420090371,1775664641413,-227.40550479,0.00011073,2]
[420090372,1775664641423,-501.16240007,0.00011073,2]
[420090373,1775664641433,-200.0,0.00011096,2]
[420090374,1775664641443,-1289.58892491,0.00011096,2]
[420090375,1775664641453,-55586.92042288,0.00011099,2]
[420090376,1775664641462,-55586.92042288,0.00011099,2]
[420090377,1775664641472,-55586.92042288,0.00011099,2]
[420090378,1775664641482,-55586.92042288,0.00011099,2]
[420090379,1775664641492,-55586.92042288,0.00011099,2]
[420090380,1775664641502,-55586.92042288,0.00011099,2]
[420090381,1775664641512,-55586.92042288,0.00011099,2]
[420090382,1775664641523,-55586.92042288,0.00011099,2]
[420090383,1775664641533,-55586.92042288,0.00011099,2]
[420090384,1775664641543,-34439.24604663,0.00011099,2]
[420090385,1775664641552,-34439.24604663,0.00011099,2]
[420090386,1775664641563,-1233.59,0.000111,2]
[420090387,1775664641573,-660.23592316,0.0001122,2]
[420090388,1775664641583,-2000.0,0.00011236,2]
[420090389,1775664641593,-160.0,0.00011318,2]
[420090390,1775664641603,-179.231883,0.00011318,2]
[420090391,1775664641613,-198.463767,0.00011318,2]
[420090392,1775664641622,-160.0,0.00011318,2]
[420090393,1775664641632,-649.290993,0.00011318,2]
[420090394,1775664641642,-1138.581987,0.00011318,2]
[420090395,1775664641652,-823.0,0.0001134,2]
[420090396,1775664641663,-3292.0,0.0001134,2]
[420090397,1775664641673,-3000.0,0.00011342,2]
[420090398,1775664641683,-3000.0,0.00011342,2]
[420090399,1775664641693,-1886.55121869,0.00011342,2]
[420090400,1775664641703,-3000.0,0.00011342,2]
[420090401,1775664641712,-500.0,0.00011348,3]
[420090402,1775664641722,-725.43,0.00011348,2]
[420090403,1775664641732,-2000.0,0.00011348,2]
[420090404,1775664641742,-250.0,0.00011366,2]
[420090405,1775664641752,-151.0,0.00011372,2]
[420090406,1775664641762,-303.46,0.00011416,2]
[420090407,1775664641772,-531.623985,0.00011421,2]
[420090408,1775664641782,-2519.581614,0.00011421,2]
[420090409,1775664641791,-823.0,0.00011448,2]
[420090410,1775664641801,-736.0,0.00011449,2]
[420090411,1775664641812,-4881.62,0.00011507,2]
[420090412,1775664641823,-172.714362,0.00011588,2]
[420090413,1775664641832,-150.0,0.00011613,2]
[420090414,1775664641842,-501.73893264,0.00011621,2]
[420090415,1775664641851,-150.0,0.00011639,2]
[420090416,1775664641861,-200.0,0.00011644,2]
[420090417,1775664641871,-1337.30371513,0.00011644,2]
[420090418,1775664641880,-160.0,0.00011646,2]
[420090419,1775664641890,-2621.34896,0.00011646,2]
[420090420,1775664641900,-5082.69792,0.00011646,2]
[420090421,1775664641909,-1895.0,0.00011674,5]
[420090422,1775664641919,-10768.24818675,0.00011684,2]
[420090423,1775664641929,-598.8525724,0.00011744,2]
[420090424,1775664641938,-2517.45482461,0.00011784,2]
[420090425,1775664641947,-1000.0,0.00011855,2]
[420090426,1775664641957,-303.46,0.00011872,2]
[420090427,1775664641967,-244.407113,0.00011884,2]
[420090428,1775664641977,-1328.095214,0.00011884,2]
[420090429,1775664641986,-2233.66702618,0.0001189,2]
[420090430,1775664641996,-3500.0,0.0001189,2]
[420090431,1775664642007,-2713.60218691,0.0001189,2]
[420090432,1775664642016,-1117.96912872,0.00012066,2]
[420090433,1775664642026,-200.0,0.00012192,2]
[420090434,1775664642035,-1386.78395259,0.00012192,2]
[420090435,1775664642045,-198.8054,0.000122,2]
[420090436,1775664642055,-304.32444499,0.00012211,2]
[420090437,1775664642065,-3574.566763,0.00012228,2]
[420090438,1775664642075,-1000.0,0.00012309,2]
[420090439,1775664642085,-303.46,0.00012329,2]
[420090440,1775664642095,-2013.3582935,0.00012438,2]
[420090441,1775664642105,-1152.0,0.00012474,2]
[420090442,1775664642116,-4609.0,0.00012474,2]
[420090443,1775664642126,-276.444472,0.00012509,2]
[420090444,1775664642136,-1310.182439,0.00012509,2]
[420090445,1775664642146,-1252.0,0.00012593,2]
[420090446,1775664642155,-411.0,0.00012593,2]
[420090447,1775664642165,-578.20924308,0.00012594,2]
[420090448,1775664642175,-200.0,0.00012594,2]
[420090449,1775664642184,-500.0,0.00012594,2]
[420090450,1775664642194,-8260.13072239,0.00012594,2]
[420090451,1775664642203,-181.08010149,0.00012594,2]
[420090452,1775664642213,-623.58710448,0.00012594,2]
[420090453,1775664642223,-151.0,0.00012594,2]
[420090454,1775664642232,-1235.18214925,0.00012594,2]
[420090455,1775664642242,-151.0,0.00012594,2]
[420090456,1775664642251,-158.44511549,0.00012594,2]
[420090457,1775664642261,-743.50770149,0.00012594,2]
[420090458,1775664642270,-181.08010149,0.00012594,2]
[420090459,1775664642280,-1500.0,0.00012594,2]
[420090460,1775664642289,-1500.0,0.00012594,2]
[420090461,1775664642299,-1500.0,0.00012594,2]
[420090462,1775664642309,-1500.0,0.00012594,2]
[420090463,1775664642318,-1500.0,0.00012594,2]
[420090464,1775664642328,-1500.0,0.00012594,2]
[420090465,1775664642337,-151.0,0.00012594,2]
[420090466,1775664642347,-160.62835242,0.00012594,2]
[420090467,1775664642356,-174.61919141,0.00012594,2]
[420090468,1775664642366,-599.60298507,0.00012594,2]
[420090469,1775664642375,-285.62441693,0.00012594,2]
[420090470,1775664642385,-181.08010149,0.00012594,2]
[420090471,1775664642395,-1500.0,0.00012594,2]
[420090472,1775664642404,-170.0,0.00012594,2]
[420090473,1775664642414,-1532.75885711,0.00012594,2]
[420090474,1775664642423,-170.0,0.00012594,2]
[420090475,1775664642433,-170.0,0.00012594,2]
[420090476,1775664642442,-170.0,0.00012594,2]
[420090477,1775664642452,-170.0,0.00012594,2]
[420090478,1775664642462,-170.0,0.00012594,2]
[420090479,1775664642472,-170.0,0.00012594,2]
[420090480,1775664642482,-170.0,0.00012594,2]
[420090481,1775664642492,-170.0,0.00012594,2]
[420090482,1775664642502,-170.0,0.00012594,2]